bitfinex-derivatives/quotes_ETHF0:USTF0_20220108
["timestamp","ask_amount","ask_price","bid_price","bid_amount"]
[1641617712482,4.0,3222.9,3222.7,1.7247256]
[1641617712682,8.96455,3222.9,3222.7,1.7247256]
[1641617712883,8.96455,3222.9,3222.7,0.86976238]
[1641617713283,2.00479,3222.8,3222.0,2.57275973]
[1641617713484,5.5,3222.4,3222.0,2.51895973]
[1641617713683,1.5,3222.2,3220.2,77.0907142]
[1641617713884,4.0,3221.6,3221.1,5.79734592]
[1641617714085,4.8084,3221.6,3221.1,1.93820633]
[1641617714287,9.774953,3221.6,3221.5,1.11181434]
[1641617714485,4.8084,3221.6,3221.5,1.11181434]
[1641617714685,4.8084,3221.6,3221.5,0.80481434]
[1641617715485,0.8084,3221.6,3221.5,0.80481434]
[1641617718285,4.8084,3221.6,3221.5,0.80481434]
[1641617718686,0.8084,3221.6,3221.5,0.80481434]
[1641617718884,2.00479,3221.9,3221.5,0.80481434]
[1641617719488,4.966322,3221.8,3221.5,0.80481434]
[1641617719887,2.00479,3221.9,3221.5,0.80481434]
[1641617720090,2.00479,3221.9,3221.6,0.264788]
[1641617720689,2.00479,3222.8,3221.6,0.264788]
[1641617720889,25.0056116,3223.4,3221.6,1.764788]
[1641617721088,1.0502116,3223.4,3221.7,1.55130876]
[1641617721288,2.00479,3223.2,3222.5,2.00479]
[1641617721489,2.00479,3223.2,3222.6,0.264788]
[1641617721689,4.96455,3223.1,3222.6,1.64483918]
[1641617722388,0.03524364,3223.0,3222.6,1.64483918]
[1641617723391,0.03524364,3223.0,3222.6,2.28562618]
[1641617723589,0.03524364,3223.1,3222.6,2.28562618]
[1641617724090,2.00479,3223.2,3222.6,2.28562618]
[1641617724290,4.96455,3223.0,3222.6,2.28562618]
[1641617724490,4.99971632,3223.1,3222.6,1.64483918]
[1641617724690,4.964472,3223.1,3222.6,1.38005118]
[1641617724890,2.00479,3223.2,3222.6,1.38005118]
[1641617725291,4.99979518,3223.1,3222.6,1.38005118]
[1641617725691,4.96455,3223.1,3222.6,1.38005118]
[1641617726092,4.0,3222.9,3222.6,1.38005118]
[1641617726293,4.96455,3223.1,3222.6,1.38005118]
[1641617726593,3.55623113,3223.2,3222.6,1.38005118]
[1641617726792,3.55623113,3223.2,3222.6,1.64483918]
[1641617726993,4.964472,3223.1,3222.6,1.64483918]
[1641617727190,4.99971751,3223.1,3222.6,1.64483918]
[1641617727593,4.964472,3223.1,3222.6,1.64483918]
[1641617729893,4.964472,3223.1,3222.6,2.28562618]
[1641617731595,4.964472,3223.1,3222.6,1.38005118]
[1641617731596,5.721072,3223.1,3222.6,1.38005118]
[1641617735904,0.03524604,3223.0,3222.6,1.38005118]
[1641617736407,4.964627,3222.9,3222.6,1.38005118]
[1641617739007,4.964704,3223.0,3222.6,1.38005118]
[1641617739409,4.964704,3222.8,3222.6,1.38005118]
[1641617739608,4.964627,3223.0,3222.6,1.38005118]
[1641617740608,4.964627,3223.1,3222.6,2.02083818]
[1641617741007,4.964627,3222.9,3222.6,2.02083818]
[1641617741208,4.96455,3223.1,3222.6,2.02083818]
[1641617741409,4.96455,3223.1,3222.7,0.264788]
[1641617741610,4.96455,3223.1,3223.0,2.00479]
[1641617742010,4.964472,3223.4,3223.0,2.00479]
[1641617742210,4.964241,3223.1,3223.0,2.00479]
[1641617742609,4.96401,3223.3,3223.0,2.00479]
[1641617742813,4.964241,3223.1,3223.0,2.00479]
[1641617743010,4.964087,3223.2,3223.0,2.00479]
[1641617743411,4.964241,3223.1,3223.0,2.00479]
[1641617743610,2.00479,3223.6,3223.0,2.00479]
[1641617743811,1.5,3223.4,3223.0,2.00479]
[1641617744012,4.964241,3223.1,3223.0,2.00479]
[1641617744211,4.96401,3223.3,3223.0,2.00479]
[1641617744412,4.964241,3223.1,3223.0,2.00479]
[1641617744813,4.964087,3223.3,3223.0,2.00479]
[1641617745013,4.964241,3223.1,3223.0,2.00479]
[1641617745316,4.964087,3223.2,3223.0,2.00479]
[1641617745513,0.03524402,3223.2,3223.0,2.00479]
[1641617745713,2.00479,3223.6,3223.0,2.00479]
[1641617746115,4.964164,3223.1,3223.0,2.00479]
[1641617746313,4.99909841,3223.5,3223.0,2.00479]
[1641617746514,0.03524241,3223.5,3223.0,2.00479]
[1641617746714,2.00479,3223.6,3223.0,2.00479]
[1641617746915,4.99917541,3223.4,3223.0,2.00479]
[1641617747316,0.03524241,3223.4,3223.0,2.00479]
[1641617747516,4.96401,3223.3,3223.1,0.264788]
[1641617747918,0.78646739,3224.0,3223.1,1.764788]
[1641617748116,0.78646739,3224.0,3223.1,0.264788]
[1641617748918,1.0502116,3224.3,3223.1,0.264788]
[1641617749119,25.18646739,3224.5,3223.1,0.264788]
[1641617749120,4.0,3224.0,3223.1,0.264788]
[1641617749519,4.0,3224.0,3223.9,2.00479]
[1641617749719,4.0,3224.0,3223.9,3.1593225]
[1641617751422,4.0,3224.0,3223.9,1.1545325]
[1641617751625,20.42109461,3224.0,3222.8,51.0411]
[1641617751826,4.0,3223.3,3222.3,23.2553]
[1641617752025,4.0,3222.7,3221.9,51.9646]
[1641617752225,4.0,3222.7,3222.2,1.04007581]
[1641617752524,4.0,3222.7,3222.2,2.08595733]
[1641617752925,0.6397,3223.3,3222.2,2.72674433]
[1641617753128,0.6397,3223.3,3222.2,1.95145652]
[1641617753625,2.00479,3223.0,3222.2,3.95624652]
[1641617753826,4.0,3222.7,3222.2,3.31545952]
[1641617755428,2.00479,3223.0,3222.2,3.31545952]
[1641617755630,2.00479,3222.6,3222.2,3.31545952]
[1641617755829,2.82539,3222.6,3222.2,3.31545952]
[1641617756033,2.82539,3222.6,3222.2,3.58024752]
[1641617757936,2.82539,3222.6,3222.2,3.31545952]
[1641617758335,2.82539,3222.6,3222.3,0.640787]
[1641617758935,2.82539,3222.6,3222.3,0.905575]
[1641617760438,2.82539,3222.6,3222.3,0.264788]
[1641617762139,2.82539,3222.6,3222.2,3.31545952]
[1641617764043,1.5,3222.4,3222.2,1.31066952]
[1641617764243,1.55192268,3222.3,3222.2,0.91066952]
[1641617764444,6.51731968,3222.3,3222.2,0.91066952]
[1641617764646,6.5525707,3222.3,3222.2,0.91066952]
[1641617765044,5.00064802,3222.3,3222.2,6.952e-05]
[1641617765346,6.55258756,3222.3,3222.2,6.952e-05]
[1641617765546,8.55737756,3222.3,3222.2,6.952e-05]
[1641617765947,21.92737756,3222.3,3222.2,6.952e-05]
[1641617766145,8.55737756,3222.3,3222.2,6.952e-05]
[1641617766345,21.92737756,3222.3,3222.2,6.952e-05]
[1641617766544,7.00543802,3222.3,3222.2,6.952e-05]
[1641617766745,8.55737756,3222.3,3222.2,6.952e-05]
[1641617767245,9.34384495,3222.3,3222.2,6.952e-05]
[1641617767445,22.71384495,3222.3,3222.2,6.952e-05]
[1641617768547,22.71384495,3222.3,3221.8,1.26880162]
[1641617768748,4.0,3222.0,3221.1,2.00479]
[1641617769148,4.0,3221.6,3221.1,0.77528781]
[1641617769349,4.8757,3221.6,3221.1,0.77528781]
[1641617769548,4.966861,3221.5,3221.2,0.88228241]
[1641617769755,2.00479,3221.3,3221.2,0.88228241]
[1641617770249,6.971805,3221.3,3221.2,0.88228241]
[1641617772052,38.67225683,3221.3,3221.2,0.88228241]
[1641617783077,38.67225683,3221.3,3221.2,1.14707041]
[1641617784979,38.67225683,3221.3,3221.2,0.88228241]
[1641617789784,33.70524183,3221.3,3221.2,0.88228241]
[1641617790184,33.70524183,3221.3,3221.2,1.14707041]
[1641617793489,33.70524183,3221.3,3221.2,0.88228241]
[1641617794091,34.32714183,3221.3,3221.2,0.88228241]
[1641617796694,33.70524183,3221.3,3221.2,0.88228241]
[1641617797197,38.67225683,3221.3,3221.2,0.88228241]
[1641617798798,38.67225683,3221.3,3221.2,1.78785741]
[1641617799197,33.70524183,3221.3,3221.2,1.78785741]
[1641617799399,31.70045183,3221.3,3221.2,1.78785741]
[1641617799999,31.70045183,3221.3,3221.2,3.79264741]
[1641617802103,31.70045183,3221.3,3221.2,3.15186041]
[1641617802308,31.70045183,3221.3,3221.2,2.88707241]
[1641617802504,31.70045183,3221.3,3221.2,0.88228241]
[1641617803304,36.66746683,3221.3,3221.2,0.88228241]
[1641617804005,38.67225683,3221.3,3221.2,0.88228241]
[1641617809116,53.59491926,3221.3,3220.4,0.31228781]
[1641617809420,4.0,3220.5,3220.3,8.781e-05]
[1641617809616,6.2431,3220.5,3219.9,1.22714683]
[1641617809816,4.0,3220.0,3219.9,1.14344683]
[1641617810015,4.0,3220.0,3219.9,2.38356525]
[1641617810216,8.969021,3220.0,3219.9,2.38356525]
[1641617810418,8.969021,3220.0,3219.9,1.98356525]
[1641617810617,8.969021,3220.0,3219.9,1.24011842]
[1641617813327,8.969021,3220.0,3219.9,0.94011842]
[1641617813527,4.969021,3220.0,3219.9,0.94011842]
[1641617814425,4.969021,3220.0,3219.9,0.54011842]
[1641617816228,5.00429811,3220.0,3219.9,0.54011842]
[1641617816630,4.969021,3220.0,3219.9,0.54011842]
[1641617820033,5.439321,3220.0,3219.9,0.54011842]
[1641617825538,2.00479,3220.1,3219.9,1.20631842]
[1641617825740,2.46149,3220.1,3219.9,1.20631842]
[1641617826138,2.46149,3220.1,3219.9,2.97110642]
[1641617826540,2.46149,3220.1,3219.9,1.47110642]
[1641617826741,2.46149,3220.1,3219.9,0.54011842]
[1641617833047,2.46149,3220.1,3219.9,0.80490642]
[1641617837556,2.46149,3220.1,3219.9,0.54011842]
[1641617841059,3.34389,3220.1,3219.9,0.54011842]
[1641617842261,2.46149,3220.1,3219.9,0.54011842]
[1641617845564,2.46149,3220.1,3219.9,0.80490642]
[1641617849469,0.4567,3220.1,3219.9,0.80490642]
[1641617849871,0.4567,3220.1,3219.9,2.30490642]
[1641617850070,0.4567,3220.1,3219.9,0.80490642]
[1641617850370,0.4567,3220.1,3219.9,2.80969642]
[1641617851374,0.78919433,3220.7,3220.0,1.5]
[1641617851572,0.78919433,3220.7,3220.2,1.5]
[1641617851874,0.78919433,3220.6,3220.0,1.55208888]
[1641617852072,0.78919433,3220.6,3220.5,1.5]
[1641617852278,0.78919433,3220.6,3220.5,2.140787]
[1641617852478,0.78919433,3220.6,3220.5,4.145577]
[1641617852677,0.78919433,3220.6,3220.5,4.410365]
[1641617853079,0.78919433,3221.1,3220.5,4.410365]
[1641617853378,0.78919433,3221.1,3220.6,1.13526193]
[1641617853780,0.78919433,3221.1,3220.7,1.764788]
[1641617854579,0.78919433,3221.2,3220.7,1.764788]
[1641617855681,0.78919433,3221.2,3220.7,0.264788]
[1641617856081,4.78919433,3221.3,3220.7,0.264788]
[1641617857283,4.78919433,3221.3,3220.7,1.38447564]
[1641617857982,4.78919433,3221.3,3220.7,1.11968764]
[1641617858384,2.00479,3221.2,3220.7,1.11968764]
[1641617858583,4.01177115,3221.2,3220.7,1.11968764]
[1641617858784,1.05801378,3221.1,3220.7,1.11968764]
[1641617858986,1.88247548,3221.1,3220.7,1.11968764]
[1641617859184,1.84720811,3221.1,3220.7,1.11968764]
[1641617859383,0.78919433,3221.1,3220.7,1.11968764]
[1641617860388,0.78919433,3220.9,3220.7,1.11968764]
[1641617861787,0.33747087,3221.0,3220.7,1.11968764]
[1641617861788,0.78919433,3220.8,3220.7,1.11968764]
[1641617863588,1.0502116,3221.0,3220.7,1.11968764]
[1641617864189,1.05804829,3220.9,3220.7,1.11968764]
[1641617865690,0.33747087,3220.8,3220.7,1.11968764]
[1641617866492,4.33747087,3220.8,3220.7,1.11968764]
[1641617866691,5.43081867,3220.8,3220.7,8.764e-05]
[1641617867293,10.39860567,3220.8,3220.7,8.764e-05]
[1641617867694,10.39860567,3220.8,3219.6,0.78150479]
[1641617867895,10.39860567,3220.8,3219.7,1.5092063]
[1641617868295,1.0933478,3220.7,3219.7,1.5092063]
[1641617868494,3.0981378,3220.7,3219.9,2.00479]
[1641617868695,1.05807682,3220.6,3219.9,2.00479]
[1641617869296,0.79154562,3220.2,3219.9,2.00479]
[1641617869497,0.79154562,3220.2,3220.0,0.905575]
[1641617871301,0.79154562,3220.3,3220.0,0.905575]
[1641617872098,0.79154562,3220.2,3220.0,0.905575]
[1641617872298,1.56854562,3220.2,3220.0,0.905575]
[1641617874102,0.777,3220.2,3220.0,0.905575]
[1641617874302,0.79154562,3220.3,3220.0,0.905575]
[1641617875004,0.79154562,3220.3,3220.2,1.5]
[1641617875204,0.79154562,3220.3,3220.2,2.81878861]
[1641617876507,0.79154562,3220.6,3220.2,2.81878861]
[1641617877208,0.79154562,3220.6,3220.5,1.5]
[1641617877408,0.79154562,3220.6,3220.5,2.369988]
[1641617878611,1.05539416,3220.9,3220.5,4.374778]
[1641617878809,1.05539416,3220.9,3220.8,1.5]
[1641617879012,1.84676117,3220.9,3220.8,1.5]
[1641617879210,0.79136701,3220.9,3220.8,2.405575]
[1641617879811,0.79136701,3220.9,3220.8,3.53409327]
[1641617880211,1.05539416,3221.2,3220.8,3.53409327]
[1641617880414,1.05539416,3221.2,3221.1,1.5]
[1641617880614,0.34043547,3221.3,3221.1,3.50479]
[1641617880812,0.34043547,3221.3,3221.2,0.264788]
[1641617881012,0.34043547,3221.3,3221.2,1.75873021]
[1641617885519,0.4656,3221.4,3221.2,1.75873021]
[1641617887621,0.4656,3221.4,3221.2,3.25873021]
[1641617887820,1.05539416,3221.6,3221.2,3.25873021]
[1641617888220,1.05539416,3221.6,3221.2,1.75873021]
[1641617889422,3.06018416,3221.9,3221.2,1.75873021]
[1641617889821,1.05781346,3221.8,3221.2,1.75873021]
[1641617890422,0.32698732,3221.7,3221.2,1.75873021]
[1641617891123,0.32698732,3221.7,3221.2,1.49394221]
[1641617891326,3.78778416,3221.9,3221.2,1.49394221]
[1641617891825,1.05779641,3221.8,3221.2,1.49394221]
[1641617892224,1.05779641,3221.8,3221.2,1.75873021]
[1641617892624,3.06018416,3221.9,3221.2,1.75873021]
[1641617893028,0.32692767,3221.8,3221.2,1.75873021]
[1641617895030,1.38232183,3221.8,3221.2,1.75873021]
[1641617896032,0.32692767,3221.8,3221.2,1.75873021]
[1641617897234,0.32692767,3221.8,3221.3,1.5]
[1641617897435,0.32692767,3221.8,3221.3,2.1928]
[1641617897837,0.32692767,3221.8,3221.3,2.457588]
[1641617898238,0.32692767,3221.8,3221.3,0.957588]
[1641617898440,0.32692767,3221.8,3221.3,0.264788]
[1641617898738,0.79003501,3221.7,3221.3,0.264788]
[1641617900039,0.79003501,3221.8,3221.3,0.264788]
[1641617900844,0.79003501,3221.7,3221.2,1.49394221]
[1641617901343,0.79003501,3221.7,3221.2,1.75873021]
[1641617903145,4.79003501,3221.7,3221.2,1.75873021]
[1641617903344,4.79003501,3221.7,3221.2,1.49394221]
[1641617905644,0.79003501,3221.6,3221.2,1.49394221]
[1641617907449,0.79003501,3221.5,3221.2,1.49394221]
[1641617907649,1.5,3221.4,3220.7,0.77759465]
[1641617907848,4.0,3221.0,3220.7,0.77759465]
[1641617908547,4.0,3221.0,3220.7,2.07246209]
[1641617908751,1.5,3221.4,3220.7,2.07246209]
[1641617908950,2.00479,3221.4,3220.7,2.07246209]
[1641617909250,0.79003501,3221.0,3220.8,0.640787]
[1641617910854,0.79003501,3221.1,3220.8,0.640787]
[1641617911653,0.79003501,3221.0,3220.8,0.640787]
[1641617912856,0.79003501,3221.0,3220.9,0.264788]
[1641617913861,0.79003501,3221.1,3220.9,0.264788]
[1641617914158,0.79003501,3221.1,3220.8,0.640787]
[1641617916764,0.79003501,3221.1,3220.8,0.905575]
[1641617919869,0.79003501,3221.1,3220.8,0.640787]
[1641617921069,0.79003501,3221.1,3220.7,1.29486744]
[1641617921272,4.0,3221.0,3220.7,1.29486744]
[1641617921471,9.571955,3221.0,3220.7,1.29486744]
[1641617921772,0.79003501,3220.9,3220.7,1.29486744]
[1641617922271,4.967709,3220.8,3220.7,1.29486744]
[1641617923274,5.75774401,3220.8,3220.7,1.29486744]
[1641617924874,6.53284401,3220.8,3220.7,1.29486744]
[1641617926374,5.75774401,3220.8,3220.7,1.29486744]
[1641617926778,5.30002341,3220.8,3220.7,1.29486744]
[1641617929488,6.35811907,3220.8,3220.7,1.29486744]
[1641617933897,7.41351323,3220.8,3220.7,1.29486744]
[1641617934999,11.41351323,3220.8,3220.7,1.29486744]
[1641617936198,10.35541757,3220.8,3220.7,1.29486744]
[1641617936598,6.35541757,3220.8,3220.7,1.29486744]
[1641617940403,48.87974329,3220.8,3220.7,0.09996744]
[1641617940603,48.87974329,3220.8,3220.1,0.77759465]
[1641617940804,5.5,3220.2,3220.1,0.77759465]
[1641617941003,5.5,3220.2,3220.1,0.45429465]
[1641617941203,10.50398669,3220.2,3220.1,0.45429465]
[1641617941404,10.50398669,3220.2,3220.1,0.26619465]
[1641617942004,10.50398669,3220.2,3219.5,2.00479]
[1641617942205,4.0,3219.7,3219.5,2.00479]
[1641617942407,4.7382,3219.7,3219.6,1.18530958]
[1641617942608,9.707684,3219.7,3219.6,0.78530958]
[1641617943206,9.7429666,3219.7,3219.6,0.78530958]
[1641617943806,10.07528101,3219.7,3219.6,0.78530958]
[1641617946512,9.7429666,3219.7,3219.6,0.78530958]
[1641617947112,9.7429666,3219.7,3219.6,0.48530958]
[1641617947312,5.7429666,3219.7,3219.6,0.48530958]
[1641617947512,5.0047666,3219.7,3219.6,1.09110958]
[1641617947712,4.969484,3219.7,3219.6,1.09110958]
[1641617947916,2.00479,3219.9,3219.6,1.35589758]
[1641617948514,4.969329,3219.8,3219.6,0.75009758]
[1641617950217,4.969329,3219.8,3219.6,0.48530958]
[1641617958532,4.0,3219.7,3219.6,0.48530958]
[1641617958734,4.03528228,3219.7,3219.6,0.48530958]
[1641617958935,9.00476628,3219.7,3219.6,0.48530958]
[1641617959134,10.50476628,3219.7,3219.1,2.00479]
[1641617959334,1.5,3219.4,3219.1,2.00479]
[1641617959535,0.8455,3219.4,3219.1,2.00479]
[1641617959735,4.970101,3219.3,3219.1,2.00479]
[1641617960436,4.970101,3219.3,3219.2,1.23859517]
[1641617965145,36.66315703,3219.3,3219.2,1.23859517]
[1641617968447,36.66315703,3219.3,3219.2,0.77689517]
[1641617970046,37.13145703,3219.3,3219.2,0.77689517]
[1641617970247,37.16674334,3219.3,3219.2,0.77689517]
[1641617970847,38.66674334,3219.3,3219.2,0.77689517]
[1641617971946,38.63145703,3219.3,3219.2,0.77689517]
[1641617972347,38.66674408,3219.3,3219.2,0.77689517]
[1641617972947,38.66674408,3219.3,3219.2,0.60599517]
[1641617973447,40.67153408,3219.3,3219.2,0.60599517]
[1641617976152,39.17153408,3219.3,3219.2,1.29419517]
[1641617976351,37.13145703,3219.3,3219.2,1.29419517]
[1641617984062,32.16135603,3219.3,3219.2,1.29419517]
[1641617986661,32.16135603,3219.3,3219.2,0.60599517]
[1641617990060,37.13145703,3219.3,3219.2,0.60599517]
[1641617990562,5.438401,3219.3,3219.2,0.60599517]
[1641617992467,6.22811722,3219.3,3219.2,0.60599517]
[1641617994469,12.19107047,3219.3,3219.2,0.60599517]
[1641617994969,13.24968317,3219.3,3219.2,0.60599517]
[1641617995169,9.28497061,3219.3,3219.2,0.60599517]
[1641617995569,7.78497061,3219.3,3219.2,0.60599517]
[1641617995769,8.84030148,3219.3,3219.2,0.60599517]
[1641617996169,8.80501404,3219.3,3219.2,0.60599517]
[1641617996372,10.30501404,3219.3,3219.2,0.60599517]
[1641617997271,10.34030103,3219.3,3219.2,0.60599517]
[1641617997475,12.34509103,3219.3,3219.2,0.60599517]
[1641617998271,10.84509103,3219.3,3219.2,0.60599517]
[1641617998474,9.78976016,3219.3,3219.2,0.60599517]
[1641617999573,11.28976016,3219.3,3219.2,0.60599517]
[1641617999774,24.65976016,3219.3,3218.3,0.77876634]
[1641617999974,4.0,3218.5,3218.3,0.77876634]
[1641618000175,4.5875,3218.5,3218.3,0.77876634]
[1641618000474,4.971414,3218.4,3218.3,0.77876634]
[1641618000674,4.971414,3218.4,3218.3,2.12110411]
[1641618001076,4.971414,3218.4,3218.3,1.34233777]
[1641618004381,8.971491,3218.5,3218.3,1.34233777]
[1641618004581,4.971491,3218.4,3218.3,0.43143777]
[1641618004780,6.56054536,3218.4,3218.2,0.77876634]
[1641618004983,1.5,3218.3,3218.0,0.77876634]
[1641618005182,5.5,3218.1,3218.0,0.77876634]
[1641618005481,5.5,3218.1,3218.0,0.37876634]
[1641618005681,10.50725167,3218.1,3218.0,0.37876634]
[1641618006282,10.50725167,3218.1,3217.6,1.30268078]
[1641618006581,23.87725167,3218.1,3217.6,1.30268078]
[1641618006781,23.87725167,3218.1,3217.5,2.00479]
[1641618006782,0.03529667,3218.0,3217.5,2.00479]
[1641618007182,4.972418,3217.9,3217.5,1.60479]
[1641618007984,0.03529667,3217.8,3217.5,1.60479]
[1641618008184,4.972418,3217.9,3217.5,1.60479]
[1641618008385,4.0,3217.6,3217.5,1.60479]
[1641618008586,4.6057,3217.6,3217.5,1.60479]
[1641618008785,9.578427,3217.6,3217.5,1.60479]
[1641618009791,9.578427,3217.6,3217.4,0.79768202]
[1641618010092,1.5,3217.5,3217.2,1.60479]
[1641618010292,3.05440253,3217.3,3216.5,1.30268078]
[1641618010494,3.05440253,3217.3,3216.4,1.30268078]
[1641618010495,4.0,3216.7,3216.4,1.30268078]
[1641618010793,4.974273,3216.6,3216.4,1.30268078]
[1641618010994,4.974273,3216.6,3216.4,2.77961902]
[1641618011394,1.5,3216.5,3216.4,0.37268078]
[1641618011595,1.5,3216.5,3216.1,1.52181697]
[1641618011794,4.0,3216.2,3216.1,1.52181697]
[1641618012095,10.474892,3216.2,3216.1,1.52181697]
[1641618012295,12.02979968,3216.2,3216.1,0.50181697]
[1641618012496,25.39979968,3216.2,3215.3,1.56628548]
[1641618012793,5.5,3215.4,3215.1,1.04382147]
[1641618012993,6.0636,3215.4,3215.1,1.04382147]
[1641618013192,4.976284,3215.3,3215.1,1.04382147]
[1641618013993,4.976284,3215.3,3214.8,1.42028203]
[1641618016298,4.976284,3215.3,3214.8,2.06106903]
[1641618016997,4.976284,3215.3,3214.9,0.264788]
[1641618017998,4.0,3215.1,3214.9,0.264788]
[1641618018398,4.976671,3215.0,3214.9,0.264788]
[1641618018598,4.976671,3215.0,3214.8,1.42028203]
[1641618019200,4.976826,3215.3,3214.8,1.42028203]
[1641618019399,4.976826,3214.9,3214.8,1.42028203]
[1641618019600,5.768526,3214.9,3214.8,1.42028203]
[1641618019801,0.7917,3214.9,3214.8,1.42028203]
[1641618019999,5.768604,3214.9,3214.8,1.42028203]
[1641618026710,4.976904,3214.9,3214.8,1.42028203]
[1641618026908,0.4715,3215.3,3214.8,1.42028203]
[1641618027108,0.4715,3215.3,3214.9,0.264788]
[1641618027709,4.976517,3215.2,3214.9,0.264788]
[1641618029615,8.976517,3215.2,3214.8,1.42028203]
[1641618030118,6.53184064,3215.2,3214.8,1.68507003]
[1641618030516,10.53184064,3215.2,3214.8,1.68507003]
[1641618030716,8.976517,3215.2,3214.8,1.68507003]
[1641618030917,4.976517,3215.2,3214.8,1.68507003]
[1641618031517,8.976517,3215.2,3214.8,1.42028203]
[1641618034021,4.976517,3215.2,3214.8,1.42028203]
[1641618034621,4.976517,3215.2,3214.9,0.264788]
[1641618034821,4.0,3215.1,3214.8,1.42028203]
[1641618035223,4.976749,3215.0,3214.8,1.42028203]
[1641618036322,4.976749,3215.0,3214.8,1.68507003]
[1641618036822,4.0,3215.1,3214.8,1.68507003]
[1641618037022,4.976826,3215.0,3214.8,1.42028203]
[1641618038225,8.03225366,3215.0,3214.8,1.42028203]
[1641618038425,6.53225366,3215.0,3214.8,1.42028203]
[1641618038626,4.976826,3215.0,3214.8,1.42028203]
[1641618038826,0.03533266,3214.9,3214.8,1.29458203]
[1641618039030,1.59085469,3214.9,3214.8,1.29458203]
[1641618039327,6.56775869,3214.9,3214.8,0.67458203]
[1641618039627,9.12776597,3214.9,3214.3,1.36344763]
[1641618039826,6.00479,3214.4,3214.3,1.36344763]
[1641618040026,6.61469,3214.4,3214.3,1.36344763]
[1641618040226,11.592368,3214.4,3214.3,1.36344763]
[1641618040826,11.592368,3214.4,3214.3,0.45344763]
[1641618041228,11.592368,3214.4,3214.3,0.35344763]
[1641618041428,11.592368,3214.4,3214.3,0.15344763]
[1641618043031,12.68785371,3214.4,3214.3,0.15344763]
[1641618043229,11.62770626,3214.4,3214.3,0.15344763]
[1641618043632,13.12770626,3214.4,3214.0,1.75823763]
[1641618043829,13.12770626,3214.4,3213.4,2.00479]
[1641618043830,11.62770626,3214.4,3213.4,2.00479]
[1641618044031,1.5,3214.3,3213.5,1.26901729]
[1641618044230,4.0,3213.9,3213.5,1.26901729]
[1641618044630,4.978685,3213.8,3213.5,1.90980429]
[1641618048136,4.978685,3213.8,3213.5,3.67459229]
[1641618048533,4.978685,3213.8,3213.5,2.17459229]
[1641618048734,28.82136329,3214.3,3213.5,2.17459229]
[1641618049334,4.978375,3214.2,3213.5,2.17459229]
[1641618049935,4.978375,3214.2,3214.0,1.5]
[1641618050136,4.978375,3214.2,3213.9,0.264788]
[1641618051239,4.978375,3214.2,3214.0,1.17178839]
[1641618058747,6.53417533,3214.2,3214.0,1.17178839]
[1641618060354,4.978375,3214.2,3214.0,1.17178839]
[1641618063959,5.583675,3214.2,3214.0,1.17178839]
[1641618065459,1.5,3214.1,3213.0,25.5426]
[1641618065660,4.0,3213.3,3213.0,25.5426]
[1641618065860,4.6253,3213.3,3212.9,2.00479]
[1641618066059,4.979537,3213.2,3212.9,2.00479]
[1641618066462,4.979537,3213.2,3213.0,1.05084694]
[1641618067262,4.979537,3213.2,3213.0,0.83954694]
[1641618080380,4.979537,3213.2,3213.0,2.33954694]
[1641618080578,0.6253,3213.3,3213.1,0.264788]
[1641618080779,0.78485605,3213.6,3213.2,1.5]
[1641618080979,0.78485605,3213.6,3213.4,1.5]
[1641618081178,0.78485605,3213.6,3213.5,0.640787]
[1641618081578,0.78485605,3213.6,3213.5,2.36933128]
[1641618081779,0.78485605,3213.6,3213.5,1.46375628]
[1641618082184,0.78485605,3213.6,3213.5,1.72854428]
[1641618082380,4.978917,3213.6,3213.5,1.72854428]
[1641618082779,4.978917,3213.7,3213.5,1.72854428]
[1641618083079,4.978917,3213.6,3213.5,1.72854428]
[1641618083279,2.00479,3213.8,3213.5,1.72854428]
[1641618083579,4.978839,3213.7,3213.5,1.72854428]
[1641618083882,2.00479,3213.8,3213.5,1.72854428]
[1641618084479,4.978762,3213.7,3213.5,1.72854428]
[1641618084880,2.00479,3213.8,3213.5,1.72854428]
[1641618085783,2.00479,3213.8,3213.6,1.5]
[1641618085982,0.78485605,3214.0,3213.7,0.264788]
[1641618086181,0.78485605,3214.0,3213.7,1.165288]
[1641618087081,0.78485605,3214.0,3213.7,2.665288]
[1641618087482,2.78964605,3214.1,3213.7,2.665288]
[1641618087881,2.78964605,3214.1,3213.7,1.165288]
[1641618088082,0.78485605,3214.1,3213.7,1.165288]
[1641618089282,0.78485605,3214.1,3213.7,2.665288]
[1641618090282,0.78485605,3214.1,3213.7,1.165288]
[1641618090483,0.78485605,3214.2,3213.7,1.165288]
[1641618091084,0.78485605,3214.2,3213.7,0.264788]
[1641618091486,0.47531482,3214.3,3213.7,0.264788]
[1641618091487,0.78485605,3214.1,3213.7,0.264788]
[1641618092786,0.78485605,3214.0,3213.7,0.264788]
[1641618092986,0.78485605,3214.0,3213.5,3.46854628]
[1641618093185,1.62235605,3214.0,3213.5,3.73333428]
[1641618093487,4.978607,3213.9,3213.5,3.73333428]
[1641618093686,0.78485605,3213.8,3213.5,3.73333428]
[1641618094888,0.78485605,3213.7,3213.5,3.73333428]
[1641618095588,0.47531482,3213.8,3213.6,1.5]
[1641618095791,1.05508807,3213.9,3213.7,0.264788]
[1641618095991,1.05508807,3213.9,3213.8,1.5]
[1641618096390,0.8375,3214.0,3213.8,1.5]
[1641618096789,0.0001,3214.0,3213.9,0.264788]
[1641618098192,0.0001,3214.0,3213.9,2.269578]
[1641618103596,1.53208807,3214.4,3213.9,2.269578]
[1641618103796,1.53208807,3214.4,3214.0,1.29219008]
[1641618104497,1.53208807,3214.4,3214.1,0.905575]
[1641618104697,1.05508807,3214.3,3214.1,0.905575]
[1641618105598,1.53208807,3214.4,3214.1,0.905575]
[1641618107803,1.53208807,3214.4,3214.0,1.29219008]
[1641618108408,0.477,3214.4,3214.0,1.29219008]
[1641618108605,0.477,3214.4,3214.1,0.264788]
[1641618109407,0.477,3214.4,3214.0,1.29219008]
[1641618109805,1.53208807,3214.4,3214.0,1.29219008]
[1641618110205,1.53208807,3214.4,3214.0,1.55697808]
[1641618110706,0.477,3214.4,3214.0,1.55697808]
[1641618110905,0.477,3214.4,3214.0,3.05697808]
[1641618111205,0.477,3214.4,3214.2,1.5]
[1641618111805,0.477,3214.4,3214.2,1.764788]
[1641618113708,1.05508807,3214.6,3214.2,1.764788]
[1641618113909,1.05508807,3214.6,3214.2,2.79926356]